bitfinex-derivatives/quotes_ETHF0:USTF0_20220106
["timestamp","ask_amount","ask_price","bid_price","bid_amount"]
[1641486991587,4.406762,3391.3,3390.5,0.384472]
[1641486991988,0.397182,3391.3,3390.5,13.024472]
[1641486992187,0.618,3392.4,3390.5,13.024472]
[1641486992388,32.4832,3392.5,3390.5,13.748672]
[1641486992587,32.4832,3392.5,3390.7,1.4738828]
[1641486992787,32.4832,3392.5,3390.8,12.64]
[1641486993188,33.9832,3392.5,3390.8,12.64]
[1641486993391,32.4832,3392.5,3390.8,12.64]
[1641486993588,2.00479,3391.4,3390.8,12.64]
[1641486994188,2.00479,3391.4,3390.7,1.4738828]
[1641486994588,2.00479,3391.4,3390.6,2.00479]
[1641486995188,2.00479,3391.4,3390.6,14.64479]
[1641486995390,2.00479,3391.4,3390.8,14.11384152]
[1641486995591,2.00479,3391.4,3391.3,1.5]
[1641486995789,32.4832,3392.5,3391.3,0.384472]
[1641486995992,0.77630942,3393.3,3391.3,0.384472]
[1641486996196,1.5,3393.0,3391.3,0.384472]
[1641486996391,1.5,3393.0,3391.3,13.024472]
[1641486996589,1.5,3392.5,3391.3,0.384472]
[1641486996792,1.5,3393.0,3391.3,0.384472]
[1641486996989,1.5,3392.3,3391.3,0.384472]
[1641486997192,1.5,3392.5,3391.3,0.384472]
[1641486997591,2.00479,3391.7,3391.3,0.384472]
[1641486997797,2.401972,3391.7,3391.3,0.384472]
[1641486999095,2.401972,3391.7,3390.6,4.00958]
[1641487001298,3.191372,3391.7,3390.6,4.00958]
[1641487002099,3.191372,3391.7,3390.1,31.4306]
[1641487002299,3.191372,3391.7,3390.0,12.64]
[1641487003000,1.5,3391.0,3389.8,30.8135]
[1641487003202,2.078,3391.0,3389.2,32.8036]
[1641487003407,2.078,3391.0,3387.0,0.7418309]
[1641487003408,14.718,3391.0,3389.0,33.3445]
[1641487003604,2.00479,3390.3,3389.5,2.00479]
[1641487003803,0.397182,3390.2,3389.6,0.384472]
[1641487004203,0.781654,3390.2,3389.6,0.384472]
[1641487004405,0.397182,3390.2,3389.6,0.384472]
[1641487005405,2.00479,3390.3,3389.6,0.384472]
[1641487006908,2.00479,3390.3,3389.6,1.1263029]
[1641487008111,2.00479,3390.3,3389.8,0.7418309]
[1641487008312,2.786444,3390.3,3389.8,0.7418309]
[1641487008714,2.401972,3390.3,3389.8,0.7418309]
[1641487008914,2.00479,3390.3,3389.8,0.7418309]
[1641487009312,2.00479,3390.3,3389.7,1.098726]
[1641487010313,2.401972,3390.3,3389.7,1.098726]
[1641487010613,2.00479,3390.3,3389.7,1.098726]
[1641487012114,2.00479,3390.3,3389.8,0.7418309]
[1641487012315,2.00479,3390.3,3389.8,1.4398309]
[1641487013616,2.00479,3390.3,3389.9,1.098726]
[1641487014417,2.00479,3390.3,3389.9,0.3568951]
[1641487014618,0.397182,3390.2,3389.8,0.7418309]
[1641487015518,1.5,3390.0,3389.8,0.7418309]
[1641487015719,2.861954,3389.9,3389.6,0.7418309]
[1641487016221,1.5,3389.7,3388.6,1.87794207]
[1641487016422,1.5,3389.2,3388.6,1.87794207]
[1641487016720,1.309782,3389.2,3388.6,1.87794207]
[1641487016921,1.309782,3389.2,3389.1,2.44e-06]
[1641487017320,1.706964,3389.2,3388.3,2.50381337]
[1641487017520,1.5,3389.1,3388.2,2.44e-06]
[1641487017722,2.00479,3388.6,3388.2,2.44e-06]
[1641487017920,2.00479,3388.6,3388.3,0.384472]
[1641487020523,2.00479,3388.6,3388.4,0.29247552]
[1641487020727,0.97158606,3389.8,3388.5,12.64]
[1641487020924,0.97158606,3389.8,3388.4,0.29247552]
[1641487020925,0.97158606,3389.8,3389.2,1.5]
[1641487021126,0.97158606,3389.8,3389.3,0.384472]
[1641487021926,2.97637606,3390.3,3389.3,13.024472]
[1641487022125,2.97637606,3390.3,3389.5,12.64]
[1641487022326,2.97637606,3390.3,3389.6,1.4632434]
[1641487023029,2.00479,3390.3,3389.6,1.4632434]
[1641487023527,2.00479,3390.3,3389.4,0.29247552]
[1641487023727,2.00479,3390.3,3389.5,2.00479]
[1641487023929,0.397182,3390.2,3389.5,2.00479]
[1641487024531,0.397182,3390.2,3389.7,0.29247552]
[1641487025329,2.00479,3390.3,3389.7,0.29247552]
[1641487025529,2.00479,3390.3,3389.8,12.64]
[1641487025730,2.00479,3390.3,3390.1,14.1141457]
[1641487025930,2.00479,3390.3,3390.2,0.384472]
[1641487027629,2.00479,3390.3,3389.6,12.64]
[1641487027829,2.00479,3390.3,3389.5,2.00479]
[1641487028030,2.00479,3390.3,3389.7,0.384472]
[1641487029932,2.00479,3390.3,3389.9,1.47425871]
[1641487030335,2.00479,3390.3,3389.8,0.28853625]
[1641487030937,2.389262,3390.3,3390.0,0.28853625]
[1641487031136,0.459982,3390.2,3390.0,0.28853625]
[1641487031636,0.857164,3390.2,3390.0,0.28853625]
[1641487031841,1.477464,3390.2,3390.0,0.28853625]
[1641487032237,1.477464,3390.2,3389.8,0.28853625]
[1641487033439,1.477464,3390.2,3388.9,0.62500122]
[1641487033640,0.46881205,3390.1,3388.9,0.62500122]
[1641487033840,2.00479,3389.9,3389.1,2.00479]
[1641487034040,2.00479,3389.9,3389.2,0.384472]
[1641487034845,2.00479,3389.9,3389.2,0.67309236]
[1641487035747,2.00479,3389.3,3389.2,0.28862036]
[1641487035948,2.464772,3389.3,3389.2,0.28862036]
[1641487036148,3.246426,3389.3,3388.8,0.62500122]
[1641487037757,3.246426,3389.3,3388.9,0.74817338]
[1641487038560,2.861954,3389.3,3388.9,0.74817338]
[1641487038858,2.00479,3389.3,3388.9,0.74817338]
[1641487039059,2.00479,3389.3,3389.1,0.74817338]
[1641487039259,0.97158606,3389.8,3389.1,0.74817338]
[1641487039859,0.97158606,3389.8,3389.3,3.50479]
[1641487040058,0.97158606,3389.8,3389.3,2.76269]
[1641487040559,2.00479,3389.9,3389.5,0.74817338]
[1641487041861,0.397182,3389.8,3389.7,0.74817338]
[1641487042061,1.493764,3389.8,3389.7,0.74817338]
[1641487043060,1.493764,3389.8,3389.4,0.74817338]
[1641487044062,1.493764,3389.8,3389.3,2.389262]
[1641487044261,1.493764,3389.8,3389.3,2.00479]
[1641487044461,0.46881813,3389.7,3389.3,2.00479]
[1641487044864,0.397182,3389.6,3389.3,2.00479]
[1641487045063,0.459982,3389.5,3389.3,2.00479]
[1641487045264,0.397182,3389.4,3389.3,2.00479]
[1641487046066,0.857164,3389.4,3389.3,2.00479]
[1641487047168,0.397182,3389.4,3389.3,2.00479]
[1641487048567,1.36876806,3389.6,3389.3,2.00479]
[1641487048767,0.459982,3389.5,3389.3,2.00479]
[1641487049867,0.459982,3389.5,3389.1,0.384472]
[1641487050669,0.86601512,3389.4,3389.1,0.384472]
[1641487050868,0.459982,3389.3,3389.1,0.384472]
[1641487051070,0.86601512,3389.4,3389.1,0.384472]
[1641487051669,0.459982,3389.3,3389.2,0.27926913]
[1641487053070,0.397182,3389.4,3389.2,0.27926913]
[1641487053270,0.459982,3389.3,3389.2,0.27926913]
[1641487053470,0.459982,3389.3,3388.8,0.27926913]
[1641487053669,0.397182,3389.2,3388.8,0.27926913]
[1641487053870,2.97637606,3389.9,3388.8,0.27926913]
[1641487054372,1.5,3389.6,3388.8,0.27926913]
[1641487054570,0.384472,3389.5,3388.8,0.27926913]
[1641487054770,0.781654,3389.5,3388.8,0.27926913]
[1641487055974,2.00479,3389.0,3388.9,0.7482027]
[1641487056172,2.464772,3389.0,3388.9,0.7482027]
[1641487056371,2.861954,3389.0,3388.9,0.7482027]
[1641487056972,2.401972,3389.0,3388.9,0.7482027]
[1641487057173,2.401972,3389.0,3388.6,0.384472]
[1641487057374,2.861954,3389.0,3388.6,0.384472]
[1641487057575,2.401972,3389.0,3388.6,0.384472]
[1641487058172,2.00479,3389.0,3388.6,0.384472]
[1641487058475,0.97158606,3389.7,3388.9,1.5]
[1641487058673,0.97158606,3389.7,3388.9,2.0448]
[1641487059074,0.97158606,3389.7,3388.9,0.5448]
[1641487059274,0.97158606,3389.7,3389.0,0.81267294]
[1641487059676,0.97158606,3389.7,3389.0,1.09194207]
[1641487059876,2.00479,3389.9,3389.3,2.00479]
[1641487060080,2.00479,3389.9,3389.4,0.384472]
[1641487060477,2.00479,3389.9,3389.5,1.47443695]
[1641487061179,2.00479,3389.9,3389.5,1.75370608]
[1641487062683,2.00479,3389.9,3389.6,0.27926913]
[1641487062978,2.00479,3389.9,3389.6,0.88686913]
[1641487063783,2.00479,3389.9,3389.7,0.27926913]
[1641487064780,2.00479,3389.9,3389.8,0.27926913]
[1641487067885,2.464772,3389.9,3389.8,0.27926913]
[1641487068583,2.00479,3389.9,3389.8,0.27926913]
[1641487068784,2.464772,3389.9,3389.8,0.27926913]
[1641487068983,2.00479,3389.9,3389.8,0.27926913]
[1641487069385,3.44516167,3389.9,3389.8,0.27926913]
[1641487070090,3.90514367,3389.9,3389.8,0.27926913]
[1641487071988,3.44516167,3389.9,3389.8,0.27926913]
[1641487072390,3.90514367,3389.9,3389.8,0.27926913]
[1641487075393,2.93355761,3389.9,3389.8,0.27926913]
[1641487076792,2.93355761,3389.9,3389.8,1.02812762]
[1641487077692,2.464772,3389.9,3389.8,0.27926913]
[1641487079998,2.464772,3389.9,3389.8,1.02811588]
[1641487080899,3.064472,3389.9,3388.9,0.62500122]
[1641487081099,1.5,3389.3,3388.9,0.62500122]
[1641487081299,1.884472,3389.2,3388.8,1.87794207]
[1641487081499,1.5,3388.9,3388.1,3.44274338]
[1641487081799,1.5,3389.1,3388.1,3.44274338]
[1641487081997,1.5,3388.9,3388.1,3.44274338]
[1641487082199,2.00479,3388.5,3388.1,4.70495568]
[1641487082399,2.72569,3388.5,3388.1,1.2622123]
[1641487082599,0.397182,3388.4,3388.1,1.2622123]
[1641487082801,0.459982,3388.3,3388.1,1.2622123]
[1641487083001,1.5,3388.2,3388.1,1.2622123]
[1641487083199,1.897182,3388.2,3388.1,1.2622123]
[1641487083399,2.281654,3388.2,3388.1,1.2622123]
[1641487083700,2.281654,3388.2,3387.2,1.2622123]
[1641487084402,2.00479,3387.4,3387.2,1.2622123]
[1641487084601,2.58729,3387.4,3387.2,1.2622123]
[1641487085001,0.459982,3387.3,3386.9,3.44274338]
[1641487085200,0.459982,3387.3,3386.7,3.07032739]
[1641487085400,0.397182,3387.2,3386.7,3.07032739]
[1641487086403,0.397182,3387.2,3386.6,2.00479]
[1641487086603,0.12897247,3387.2,3386.6,2.00479]
[1641487087610,0.12897247,3387.2,3386.4,3.07032739]
[1641487087804,1.5,3386.8,3386.4,3.07032739]
[1641487088002,0.397182,3386.7,3386.4,3.07032739]
[1641487088206,4.00958,3386.5,3386.4,3.07032739]
[1641487088604,4.406762,3386.5,3386.4,3.07032739]
[1641487089206,4.406762,3386.5,3386.4,2.49755755]
[1641487089505,5.906762,3386.5,3386.4,2.49755755]
[1641487090710,5.906762,3386.5,3386.4,5.755e-05]
[1641487090908,4.406762,3386.5,3386.4,5.755e-05]
[1641487091109,4.406762,3386.5,3385.7,5.755e-05]
[1641487091311,4.406762,3386.5,3385.8,0.652681]
[1641487091510,4.00958,3386.5,3385.9,1.5]
[1641487091710,32.31747155,3387.3,3385.8,0.969072]
[1641487091911,0.99227155,3387.3,3385.8,13.609072]
[1641487092109,0.99227155,3387.4,3385.8,13.609072]
[1641487092310,2.00479,3387.1,3386.3,2.00479]
[1641487092510,0.781654,3387.0,3386.3,2.00479]
[1641487093410,0.397182,3387.0,3386.4,0.268209]
[1641487093613,0.397182,3387.0,3386.5,0.384472]
[1641487094217,2.00479,3386.7,3386.5,0.384472]
[1641487095916,2.00479,3386.7,3386.6,0.268209]
[1641487098418,2.464772,3386.7,3386.5,0.384472]
[1641487098619,2.00479,3386.7,3386.5,0.384472]
[1641487099519,30.7599,3387.7,3386.6,1.74381865]
[1641487099720,0.99227155,3387.7,3386.7,14.14]
[1641487100119,0.99227155,3387.7,3387.3,1.5]
[1641487100319,0.99227155,3387.7,3387.4,0.652681]
[1641487100518,0.99227155,3387.7,3387.5,1.46378083]
[1641487100724,1.21461966,3388.0,3387.5,1.46378083]
[1641487100725,1.21461966,3388.0,3387.6,1.768209]
[1641487101422,1.45754359,3388.2,3387.6,1.768209]
[1641487101721,0.98937833,3388.4,3387.6,1.768209]
[1641487101921,0.98937833,3388.4,3388.3,1.5]
[1641487102123,0.62535273,3388.8,3388.3,3.81185912]
[1641487102320,0.62535273,3388.8,3388.7,5.48424308]
[1641487102520,1.45754359,3388.9,3388.7,19.62424308]
[1641487102725,1.45754359,3388.9,3388.8,0.268209]
[1641487103124,1.45754359,3389.4,3388.8,0.268209]
[1641487103425,2.23919759,3389.4,3388.8,0.268209]
[1641487104225,2.00479,3389.2,3388.7,2.00479]
[1641487104424,2.25024359,3389.4,3389.1,1.5]
[1641487104624,1.45754359,3389.4,3389.2,1.13346399]
[1641487104824,0.46887806,3389.9,3389.3,1.47452826]
[1641487105023,0.46887806,3389.9,3389.3,1.74273726]
[1641487105624,0.46887806,3389.9,3389.3,0.268209]
[1641487105825,0.397182,3389.8,3389.3,0.268209]
[1641487106127,1.5,3389.5,3389.4,0.19552194]
[1641487106326,2.464772,3389.5,3389.4,0.19552194]
[1641487107529,2.93365006,3389.5,3389.1,0.384472]
[1641487107829,2.93365006,3389.5,3388.5,0.19552194]
[1641487108526,2.00479,3389.1,3388.5,0.19552194]
[1641487108728,2.65329,3389.1,3388.6,1.768209]
[1641487109228,2.65329,3389.1,3388.7,0.384472]
[1641487109628,2.00479,3389.1,3388.8,0.268209]
[1641487109929,2.00479,3389.1,3389.0,1.47451087]
[1641487110128,2.00479,3389.1,3389.0,1.74271987]
[1641487110928,2.00479,3389.1,3389.0,3.24271987]
[1641487111127,2.00479,3389.1,3389.0,1.74271987]
[1641487111728,2.00479,3389.1,3389.0,0.268209]
[1641487112928,2.00479,3389.1,3389.0,1.768209]
[1641487113830,2.00479,3389.1,3389.0,0.268209]
[1641487114528,2.00479,3389.1,3389.0,0.85961394]
[1641487115529,2.00479,3389.1,3389.0,0.268209]
[1641487118735,2.00479,3389.1,3388.7,0.384472]
[1641487118736,2.464772,3389.1,3388.7,0.384472]
[1641487119035,2.00479,3389.1,3388.7,0.384472]
[1641487119537,2.00479,3389.1,3388.8,0.268209]
[1641487122441,0.99182205,3389.9,3388.8,0.268209]
[1641487122642,0.99182205,3390.1,3388.8,1.768209]
[1641487122840,0.99182205,3390.1,3388.8,14.408209]
[1641487123041,0.99182205,3390.1,3389.2,1.5]
[1641487123242,0.99182205,3390.1,3389.2,15.0148]
[1641487123442,0.99182205,3390.1,3389.3,14.11451739]
[1641487123642,0.99182205,3390.1,3389.4,0.268209]
[1641487123845,0.99182205,3390.1,3389.8,12.64]
[1641487124043,0.99182205,3390.1,3389.9,0.268209]
[1641487124242,1.45180405,3390.1,3389.9,0.983009]
[1641487124743,0.99182205,3390.1,3389.9,0.983009]
[1641487126044,0.99182205,3390.1,3389.9,1.73115228]
[1641487126243,2.00479,3390.3,3389.9,1.73115228]
[1641487126645,0.781654,3390.2,3389.9,1.46294328]
[1641487127148,0.459982,3390.1,3389.9,1.46294328]
[1641487127344,2.00479,3390.3,3389.9,0.74814328]
[1641487127544,2.00479,3390.3,3390.0,0.74814328]
[1641487127744,2.00479,3390.3,3390.0,0.97177858]
[1641487127945,0.459982,3390.2,3390.0,0.97177858]
[1641487128444,0.857164,3390.2,3390.0,0.97177858]
[1641487128846,0.857164,3390.2,3390.0,0.74814328]
[1641487129649,0.459982,3390.2,3390.0,0.74814328]
[1641487130247,0.459982,3390.2,3389.9,0.268209]
[1641487131148,0.459982,3390.2,3389.9,1.01635228]
[1641487131748,0.459982,3390.2,3389.9,0.74814328]
[1641487132353,0.397182,3390.1,3389.8,0.74814328]
[1641487132951,0.459982,3390.0,3389.8,0.74814328]
[1641487133851,0.397182,3390.1,3389.8,0.74814328]
[1641487134251,2.401972,3390.3,3389.8,0.74814328]
[1641487135554,2.401972,3390.3,3390.0,0.74814328]
[1641487135952,0.459982,3390.2,3390.0,0.74814328]
[1641487136152,2.401972,3390.3,3390.0,0.74814328]
[1641487136752,2.401972,3390.3,3389.9,0.97178853]
[1641487137754,2.401972,3390.3,3389.8,0.74814328]
[1641487138654,1.5,3390.2,3389.8,0.74814328]
[1641487138855,0.397182,3390.1,3389.8,0.74814328]
[1641487139056,0.397182,3390.1,3389.6,0.22364525]
[1641487139057,1.5,3389.9,3389.6,0.22364525]
[1641487139258,1.5,3389.7,3389.6,0.22364525]
[1641487140159,2.344454,3389.7,3389.3,0.60926769]
[1641487140355,0.844454,3389.7,3388.5,2.49772675]
[1641487140558,2.00479,3389.2,3388.4,32.65039]
[1641487140755,0.397182,3389.1,3388.5,0.384472]
[1641487141757,0.397182,3389.1,3388.5,0.652681]
[1641487142162,1.238382,3389.1,3388.5,0.82798627]
[1641487142360,0.384472,3389.0,3388.5,0.82798627]
[1641487142567,0.397182,3388.9,3388.5,0.82798627]
[1641487143368,0.397182,3388.9,3388.6,0.21871858]
[1641487143569,0.459982,3388.8,3388.6,0.21871858]
[1641487143767,0.459982,3388.8,3388.6,0.60319058]
[1641487144167,0.459982,3388.8,3388.6,0.21871858]
[1641487144967,0.459982,3388.8,3388.7,0.21871858]
[1641487145568,0.397182,3388.9,3388.7,0.21871858]
[1641487145969,0.397182,3388.9,3388.5,0.87139958]
[1641487146168,2.00479,3389.2,3388.5,0.87139958]
[1641487146369,2.00479,3389.2,3388.5,1.50439958]
[1641487146968,2.389262,3389.2,3388.5,1.50439958]
[1641487147470,2.389262,3389.2,3388.6,0.21871858]
[1641487147669,1.5,3388.8,3388.2,0.60926769]
[1641487147871,1.5,3388.6,3388.2,0.60926769]
[1641487148268,0.397182,3388.5,3388.2,0.60926769]
[1641487148468,2.00479,3388.3,3388.2,0.60926769]
[1641487148872,2.00479,3388.3,3387.9,0.60926769]
[1641487149072,2.786444,3388.3,3387.9,0.60926769]
[1641487150171,2.786444,3388.3,3387.3,5.35262928]
[1641487151271,2.786444,3388.3,3387.3,3.34783928]
[1641487151470,1.5,3388.1,3387.3,3.34783928]
[1641487151671,1.5,3387.4,3387.1,1.7503402]
[1641487151872,1.5,3387.2,3387.0,2.49772675]
[1641487152072,1.5,3387.2,3386.8,8.53232739]
[1641487152271,1.5,3386.9,3386.8,8.53232739]
[1641487152471,1.5,3386.9,3386.8,3.07032739]
[1641487152672,2.464772,3386.9,3386.3,3.07032739]
[1641487152874,2.861954,3386.9,3386.6,2.49229008]
[1641487154074,2.861954,3386.9,3386.3,3.07032739]
[1641487154375,2.861954,3386.9,3386.4,0.652681]
[1641487154574,0.384472,3387.3,3386.4,0.652681]
[1641487154773,0.99182205,3388.0,3386.4,2.152681]
[1641487154974,0.99182205,3388.0,3386.5,12.64]
[1641487155175,0.99182205,3388.0,3386.4,0.384472]
[1641487155777,1.5,3388.1,3386.4,0.384472]
[1641487156274,1.5,3388.3,3386.4,0.384472]
[1641487156676,2.00479,3387.7,3386.9,2.00479]
[1641487156875,2.00479,3387.7,3387.0,0.268209]
[1641487157176,2.00479,3387.7,3387.1,0.384472]
[1641487157374,2.401972,3387.7,3387.1,0.652681]
[1641487157976,2.00479,3388.1,3387.1,2.152681]
[1641487158176,2.00479,3388.1,3387.1,0.652681]
[1641487158576,2.00479,3388.1,3387.5,2.00479]
[1641487158777,2.00479,3388.1,3387.6,0.268209]
[1641487160985,2.00479,3388.1,3387.6,1.74346381]
[1641487162283,2.00479,3388.1,3387.6,0.268209]
[1641487162483,2.00479,3388.1,3387.6,1.74346381]
[1641487163285,2.00479,3388.1,3388.0,1.5]
[1641487163488,31.2185,3389.1,3388.0,2.152681]
[1641487163683,0.99182205,3389.9,3388.0,0.652681]
[1641487163885,0.99182205,3389.9,3388.3,1.47493278]
[1641487164085,0.99182205,3389.9,3388.3,2.02023278]
[1641487164284,0.99182205,3389.9,3388.3,0.5453]
[1641487164584,2.00479,3388.8,3388.3,0.5453]
[1641487164783,2.00479,3388.8,3388.4,0.268209]
[1641487165386,2.00479,3388.8,3388.0,2.389262]
[1641487165585,2.75659,3388.8,3388.1,0.268209]
[1641487165785,3.153772,3388.8,3388.1,0.268209]
[1641487166184,3.153772,3388.8,3388.0,2.00479]
[1641487166185,1.5,3388.2,3388.0,2.00479]
[1641487166385,0.459982,3388.1,3388.0,2.00479]
[1641487167986,0.397182,3388.2,3388.0,2.00479]
[1641487168388,2.00479,3388.8,3388.0,2.00479]
[1641487168592,0.397182,3388.7,3388.1,0.268209]
[1641487170690,2.00479,3389.6,3388.6,2.00479]
[1641487170891,2.00479,3389.9,3388.6,3.50479]
[1641487171196,2.00479,3389.9,3389.0,1.47462828]
[1641487171393,2.00479,3389.9,3389.0,0.8576]
[1641487171692,2.00479,3389.9,3389.2,2.97457175]
[1641487171891,2.00479,3389.9,3389.3,0.652681]
[1641487172094,2.00479,3389.9,3389.3,2.152681]
[1641487172291,2.00479,3389.9,3389.3,0.652681]
[1641487172492,2.00479,3389.9,3389.3,2.152681]
[1641487172692,2.00479,3389.9,3389.5,2.00479]
[1641487172891,2.00479,3389.9,3389.6,0.268209]
[1641487181804,2.00479,3389.9,3389.6,1.048309]
[1641487182306,0.459982,3389.8,3389.6,1.048309]
[1641487182505,2.00479,3389.9,3389.6,1.048309]
[1641487185508,1.959982,3389.8,3389.3,0.384472]
[1641487185810,1.5,3389.4,3388.6,2.00479]
[1641487186008,0.397182,3389.3,3388.6,2.00479]
[1641487186210,1.5,3389.4,3388.6,2.00479]
[1641487186413,1.5,3389.8,3388.6,2.00479]
[1641487186811,12.64,3389.7,3388.6,2.00479]
[1641487187011,2.00479,3389.2,3388.6,2.00479]
[1641487187212,12.64,3388.6,3387.7,5.462]
[1641487187511,1.5,3388.1,3387.4,0.74018797]
[1641487187712,0.781654,3388.0,3387.4,0.74018797]
[1641487188513,0.781654,3388.0,3386.6,0.4434]
[1641487189016,2.00479,3387.4,3386.6,2.44819]
[1641487189215,1.5,3387.0,3386.5,0.74018797]
[1641487189412,1.5,3386.9,3386.5,0.74018797]
[1641487189813,0.781654,3386.8,3386.5,0.74018797]
[1641487190014,0.459982,3386.7,3386.4,0.74018797]
[1641487190213,0.397182,3386.6,3386.4,0.74018797]
[1641487190615,2.00479,3387.4,3386.4,0.74018797]
[1641487190815,2.00479,3387.4,3386.4,1.39988797]
[1641487191017,2.00479,3386.6,3386.4,1.39988797]
[1641487191221,2.464772,3386.6,3386.4,1.39988797]
[1641487191422,2.00479,3386.6,3386.4,1.39988797]
[1641487191627,2.00479,3386.6,3386.4,0.6597]
[1641487191823,0.397182,3386.5,3385.5,0.74018797]
[1641487192924,2.00479,3385.6,3385.1,0.74018797]
[1641487193123,2.87359,3385.6,3385.1,0.74018797]
[1641487193324,2.87359,3385.6,3385.2,0.384472]
[1641487193626,2.87359,3385.6,3385.1,0.74018797]
[1641487194024,0.384472,3385.5,3385.1,0.74018797]
[1641487194227,2.60869093,3385.6,3385.1,0.74018797]
[1641487194624,0.397182,3385.5,3385.1,0.74018797]
[1641487195223,2.60869093,3385.6,3385.1,0.384472]
[1641487195224,1.73989093,3385.6,3385.1,0.384472]
[1641487195423,1.73989093,3385.6,3385.1,1.056272]
[1641487195725,2.00479,3385.9,3385.3,1.5]
[1641487196424,2.00479,3385.9,3385.4,0.397182]
[1641487197023,2.00479,3385.9,3385.4,2.401972]
[1641487197624,2.00479,3386.5,3385.4,2.401972]
[1641487198029,2.00479,3386.5,3386.0,1.5]
[1641487198228,2.00479,3386.5,3386.1,0.781654]
[1641487198430,63.4641,3388.7,3386.2,12.64]
[1641487198727,95.7095,3388.7,3386.2,43.1489]
[1641487198927,2.00479,3387.5,3386.7,2.00479]
[1641487199128,2.00479,3387.5,3386.8,0.397182]
[1641487200127,2.00479,3387.5,3387.2,1.5]
[1641487200328,2.00479,3387.5,3387.3,0.781654]
[1641487200528,2.00479,3387.5,3387.0,12.64]
[1641487200728,2.00479,3387.5,3387.2,1.5]
[1641487201027,2.00479,3387.5,3387.2,2.81388309]
[1641487201430,2.00479,3387.5,3387.3,0.397182]
[1641487201629,32.2454,3388.7,3387.3,0.397182]
[1641487201832,32.6956,3389.0,3387.3,0.397182]
[1641487202030,1.5,3389.0,3387.3,0.397182]
[1641487202429,1.5,3389.3,3387.4,1.5]
[1641487202630,1.5,3389.3,3387.4,0.7231]
[1641487203030,2.00479,3388.2,3387.4,2.72789]
[1641487203232,0.397182,3388.1,3387.5,0.781654]
[1641487205132,2.00479,3388.2,3387.5,0.781654]
[1641487205735,0.397182,3388.1,3387.5,0.781654]
[1641487206136,0.397182,3388.1,3387.4,2.00479]
[1641487206336,0.931882,3388.1,3386.7,7.46679]
[1641487206535,0.931882,3388.1,3386.7,2.00479]
[1641487206938,2.00479,3387.6,3386.7,2.00479]
[1641487208137,2.00479,3387.6,3386.7,14.64479]
[1641487208537,2.00479,3387.6,3386.7,2.00479]
[1641487209639,2.00479,3387.6,3386.7,2.74497797]
[1641487210740,2.00479,3387.6,3386.7,2.00479]
[1641487210939,2.00479,3386.8,3386.6,0.74018797]
[1641487211140,0.857164,3386.7,3386.6,0.74018797]
[1641487212139,0.459982,3386.7,3386.6,0.74018797]
[1641487212341,0.459982,3386.7,3386.4,0.397182]
[1641487213344,2.00479,3386.8,3386.4,0.397182]
[1641487213544,2.00479,3386.8,3386.4,1.187482]
[1641487213745,2.00479,3386.8,3386.6,1.5]
[1641487213944,2.00479,3386.9,3386.7,0.397182]
[1641487214844,2.00479,3386.9,3386.7,1.81293726]
[1641487215045,2.00479,3387.9,3386.8,2.00479]
[1641487215244,2.00479,3387.9,3387.3,1.47536364]
[1641487215445,2.401972,3387.9,3387.3,1.398854]
[1641487215846,2.00479,3388.3,3387.3,1.398854]
[1641487216653,33.3926,3389.1,3388.0,1.5]
[1641487216847,0.99182205,3389.4,3388.0,13.4895]
[1641487217047,2.00479,3388.9,3388.2,2.00479]
[1641487217250,2.00479,3388.9,3388.3,0.397182]
[1641487217648,2.00479,3388.9,3388.4,0.384472]
[1641487217847,2.00479,3388.9,3388.5,0.397182]
[1641487219449,65.8332,3390.1,3388.6,1.5]
[1641487219651,0.99182205,3390.3,3388.8,1.5]
[1641487219849,1.5,3390.2,3388.9,1.47467612]
[1641487220047,0.99182205,3390.3,3388.8,0.8682]
[1641487220247,1.5,3390.2,3388.8,2.3682]
[1641487221148,2.00479,3389.9,3389.2,2.00479]
[1641487221348,2.00479,3389.9,3389.3,0.781654]
[1641487222153,2.00479,3389.9,3389.2,2.00479]
[1641487222154,2.401972,3389.9,3389.2,2.00479]
[1641487222553,2.401972,3389.9,3388.6,1.19267241]
[1641487223155,2.401972,3389.9,3389.2,2.00479]
[1641487223953,2.401972,3389.9,3389.2,2.389262]
[1641487224253,3.901972,3389.9,3389.2,2.389262]
[1641487224456,1.5,3389.3,3388.2,2.00479]
[1641487224655,2.2203,3389.3,3388.2,2.00479]
[1641487224853,0.7203,3389.3,3388.2,2.00479]
[1641487225053,2.00479,3388.9,3388.2,2.00479]
[1641487225353,0.397182,3388.8,3388.2,2.00479]
[1641487225954,1.5,3388.4,3387.6,0.74018797]
[1641487226154,1.5,3387.7,3384.8,5.68580401]
[1641487226353,1.5,3387.3,3385.9,0.4388]
[1641487226553,0.397182,3387.2,3384.9,65.5993]
[1641487227055,2.401972,3387.2,3386.4,2.00479]
[1641487229661,2.401972,3387.2,3386.5,0.781654]
[1641487233862,2.00479,3387.2,3386.5,0.781654]
[1641487234462,0.397182,3387.1,3386.5,0.781654]
[1641487236263,0.618,3388.5,3386.9,1.5]
[1641487236463,2.49182205,3388.8,3386.9,2.3376]
[1641487236667,0.99182205,3388.8,3386.9,2.3376]
[1641487237064,0.99182205,3389.1,3386.9,2.3376]
[1641487237263,2.00479,3388.4,3387.6,2.00479]
[1641487237466,0.397182,3388.3,3387.6,2.00479]
[1641487237964,0.397182,3388.3,3387.7,0.397182]
[1641487239666,0.397182,3388.3,3387.7,1.125782]
[1641487239876,2.00479,3388.4,3387.7,1.125782]
[1641487240665,1.23988788,3389.9,3388.0,1.5]
[1641487240867,1.23988788,3389.9,3388.3,1.5]
[1641487240868,0.99182205,3389.7,3388.3,1.5]
[1641487241065,12.64,3390.6,3388.3,1.5]
[1641487241066,0.99182205,3389.8,3388.3,1.5]